Cogmind - Beta 10.2 @@@ ROGUE MODE // 2020.11.18 @ 23:33:54 // Halloween2020/ForbiddenLore Player: PyroL Result: Destroyed by G-47 Trooper with Particle Gun Performance ------------- Evolutions (2) 1000 Regions Visited (5) 1000 Robots Destroyed (13) 65 Value Destroyed (365) 365 Prototype IDs (1) 20 Alien Tech Used (0) 0 Bonus (-6) -6 TOTAL SCORE: 2444 Bonus ------- Friendly Fire -6 Cogmind --------- Core Integrity 0/550 Matter 143/300 Energy 100/100 System Corruption 0% Temperature Cool (9) Movement Core (300) Ox5 Location -8/Materials Parts ------- > --- POWER (1) -------- (None) > --- PROPULSION (4) --- (None) > --- UTILITY (3) ------ Medium Storage Unit > --- WEAPON (3) ------- Heavy Mace Heavy Mace Heavy Mace > --- INVENTORY (8) ---- Nuclear Core Signal Interpreter Peak State ------------ > --- POWER ------------ (None) > --- PROPULSION ------- Aluminum Leg Aluminum Leg Aluminum Leg > --- UTILITY ---------- Medium Storage Unit Experimental Sensor Array Hardened Light Armor Plating > --- WEAPON ----------- EM Pulse Gun Ion Cannon > --- INVENTORY -------- Nuclear Core Light Treads Light Treads Signal Interpreter [Rating: 16] Favorites ----------- Power Light Ion Engine Engine Light Ion Engine Power Core Nuclear Core Propulsion Aluminum Leg Treads Light Treads Leg Aluminum Leg Utility Small Storage Unit Device Sensor Array Storage Small Storage Unit Protection Hardened Light Armor Plating Weapon EM Pulse Gun Energy Gun EM Pulse Gun Energy Cannon Ion Cannon Ballistic Gun Light Assault Rifle Launcher Grenade Launcher Impact Weapon Heavy Mace Build | -11 -10 -10 -10 -9 -8 ------- Run | Scr Mat Min Exi Min Mat Slots Evolved 4 | . . . . . 4 Power . | . . . . . . Propulsion 2 | . . . . . 2 Utility 1 | . . . . . 1 Weapon 1 | . . . . . 1 Parts Attached 29 | 5 9 . 2 1 12 Power 3 | . 1 . 1 . 1 Engine 2 | . 1 . 1 . . Core 1 | . . . . . 1 Reactor . | . . . . . . Propulsion 7 | 2 1 . . . 4 Treads 3 | . . . . . 3 Leg 4 | 2 1 . . . 1 Wheel . | . . . . . . Hover . | . . . . . . Flight . | . . . . . . Utility 5 | 1 1 . 1 . 2 Device 2 | . 1 . . . 1 Storage 2 | 1 . . 1 . . Processor . | . . . . . . Hackware . | . . . . . . Protection 1 | . . . . . 1 Artifact . | . . . . . . Weapon 14 | 2 6 . . 1 5 Energy Gun 5 | 1 3 . . . 1 Energy Cannon 1 | . . . . . 1 Ballistic Gun 1 | 1 . . . . . Ballistic Cannon . | . . . . . . Launcher 4 | . 3 . . 1 . Special Weapon . | . . . . . . Impact Weapon 3 | . . . . . 3 Slashing Weapon . | . . . . . . Piercing Weapon . | . . . . . . Special Melee Weapon . | . . . . . . Unidentified Prototypes 1 | . . . . . 1 Parts Lost 14 | . 1 . . 4 9 Power 2 | . . . . 1 1 Propulsion 5 | . . . . . 5 Utility 3 | . . . . 1 2 Weapon 4 | . 1 . . 2 1 Highest Loss Streak 5 | . 1 . . 4 5 Average Slot Usage (%) 89 | . 80 100 100 97 50 Engine 10 | . 5 14 14 14 . Leg 26 | . 28 28 28 28 13 Device 11 | . 4 14 14 11 6 Storage 13 | . 14 14 14 14 9 Energy Gun 22 | . 15 28 28 25 2 Ballistic Gun 1 | . 10 . . . . Naked Turns . | . . . . . . Heaviest Build 22 | 7 12 12 16 17 22 Greatest Support 42 | 20 20 20 20 20 42 Greatest Overweight (x) 2 | . . . . . 2 Average Overweight (x) . | . . . . . 1 Largest Inventory Capacity 8 | 6 6 6 8 8 8 Average Capacity 6 | 5 6 6 6 8 8 Most Carried 7 | 4 6 5 6 7 7 Average Carried 5 | 2 5 5 5 6 3 Final Capacity 8 | 6 6 6 8 8 8 Final Carried 7 | 4 5 5 6 7 2 Class Distribution -------------------- 100% | Mutant Dominant Class ---------------- Mutant | -10/Materials Mutant | -10/Mines Mutant | -10/Exiles Mutant | -9/Mines Mutant | -8/Materials Resources | -11 -10 -10 -10 -9 -8 ----------- Run | Scr Mat Min Exi Min Mat Matter Collected 362 | 248 83 . . 31 . Remotely . | . . . . . . Salvage Created 428 | . 320 . . . 108 Parts 21 | . 16 . . . 5 Haulers Intercepted . | . . . . . . Recyclers Shooed . | . . . . . . Parts Field Recycled . | . . . . . . Retrieved Matter . | . . . . . . Parts Self-Destructed . | . . . . . . Prevented . | . . . . . . Kills | -11 -10 -10 -10 -9 -8 ------- Run | Scr Mat Min Exi Min Mat Combat Hostiles Destroyed 8 | . 6 . . . 2 Melee 2 | . . . . . 2 Guns 2 | . 2 . . . . AOE 4 | . 4 . . . . Classes Destroyed 7 | . 5 . . . 2 Builder 1 | . 1 . . . . Recycler 1 | . 1 . . . . Mechanic 1 | . 1 . . . . Watcher 2 | . 2 . . . . Grunt 6 | . 6 . . . . Duelist 1 | . . . . . 1 Sentry 1 | . . . . . 1 Best Kill Streak 5 | . 5 . . . 2 Combat Bots Only 2 | . 2 . . . 2 Max Kills in Single Turn 2 | . 2 . . . 1 Gunslinging . | . . . . . . Exploded 1 | . 1 . . . . Melee 1 | . . . . . 1 Uniques/NPCs Destroyed . | . . . . . . Combat | -11 -10 -10 -10 -9 -8 -------- Run | Scr Mat Min Exi Min Mat Damage Taken 2248 | . 375 . . 259 1614 Core 706 | . 67 . . 79 560 Absorbed by Shields . | . . . . . . Core Remaining (%) 70 | 100 . . . 41 . Volleys Fired 33 | . 28 . . 1 4 Largest 2 | . 2 . . 2 1 Hottest 80 | . 60 . . 80 60 Shots Fired 51 | . 45 . . 2 4 Gun 39 | . 38 . . 1 . Cannon 4 | . . . . . 4 Launcher 8 | . 7 . . 1 . Special . | . . . . . . Kinetic 26 | . 26 . . . . Thermal 5 | . . . . 1 4 Explosive 8 | . 7 . . 1 . Electromagnetic 12 | . 12 . . . . Robot Hit Streak 8 | . 8 . . . 1 Robot Miss Streak 3 | . 3 . . . 1 Penetration Max . | . . . . . . Secondary Targets . | . . . . . . Shots Hit Robots 42 | . 29 . . . 13 Core Hits 31 | . 22 . . 3 6 Critical Hits . | . . . . . . Critical Kills . | . . . . . . Critical Parts Destroyed . | . . . . . . Melee Attacks 15 | . . . . . 15 Impact 15 | . . . . . 15 Slashing . | . . . . . . Piercing . | . . . . . . Sneak Attacks . | . . . . . . Combat Hostiles . | . . . . . . Follow-up Attacks 3 | . . . . . 3 Damage Inflicted 1485 | . 997 . . 107 381 Guns 288 | . 288 . . . . Cannons 45 | . . . . . 45 Explosions 816 | . 709 . . 107 . Melee 332 | . . . . . 332 Ramming 4 | . . . . . 4 Kinetic 151 | . 151 . . . . Thermal 161 | . 116 . . . 45 Explosive 700 | . 593 . . 107 . Electromagnetic 137 | . 137 . . . . Impact 332 | . . . . . 332 Slashing . | . . . . . . Piercing . | . . . . . . Highest Corruption . | . . . . . . Average Corruption . | . . . . . . Corruption Purged . | . . . . . . Overload Shots . | . . . . . . Overflow Damage 19 | . . . . . 19 Projectiles . | . . . . . . Explosions . | . . . . . . Melee 19 | . . . . . 19 Knockbacks 3 | . . . . . 3 Impact 3 | . . . . . 3 Kinetic . | . . . . . . Secondary . | . . . . . . Self-Inflicted Damage 50 | . 48 . . . 2 Shots 1 | . 1 . . . . Rammed 2 | . . . . . 2 Targets Rammed 2 | . . . . . 2 Kicked . | . . . . . . Crushed . | . . . . . . Highest Temperature 52 | . 38 . . 18 52 Average Temperature 14 | . 11 . . 12 26 Received Heat Transfer 864 | . 180 . . . 684 Siege Activations . | . . . . . . Robots Corrupted . | . . . . . . Combat Hostiles . | . . . . . . Parts Fried . | . . . . . . Impact Corruptions 1 | . . . . . 1 Robots Melted . | . . . . . . Combat Hostiles . | . . . . . . Parts Melted . | . . . . . . Heat Transferred 224 | . 150 . . . 74 Parts Sabotaged . | . . . . . . Parts Stolen . | . . . . . . Parts Stripped . | . . . . . . Power Chain Reactions 1 | . 1 . . . . Missiles Intercepted . | . . . . . . Alert | -11 -10 -10 -10 -9 -8 ------- Run | Scr Mat Min Exi Min Mat Peak Influence 216 | . 216 84 . 15 50 Initial 84 | . . 84 . . 5 Average 58 | . 119 84 . . 10 Maximum Alert Level 1 | . 1 . . . . Low Security (%) 92 | 100 75 100 . 100 100 Level 1 7 | . 24 . . . . Level 2 . | . . . . . . Level 3 . | . . . . . . Level 4 . | . . . . . . Level 5 . | . . . . . . High Security . | . . . . . . Max Security . | . . . . . . Squads Dispatched 2 | . 2 . . . . Investigation 1 | . 1 . . . . Extermination . | . . . . . . Reinforcement 1 | . 1 . . . . Assault . | . . . . . . Garrison . | . . . . . . Intercept . | . . . . . . Construction Impeded . | . . . . . . Haulers Reinforced . | . . . . . . Stealth | -11 -10 -10 -10 -9 -8 --------- Run | Scr Mat Min Exi Min Mat Distress Signals . | . . . . . . Communications Jammed . | . . . . . . Distress Signals . | . . . . . . Times Spotted 22 | . 13 . . 5 4 Peak Tracking Total 5 | . 5 . . 4 4 Tactical Retreats 1 | . 1 . . . . Traps | -11 -10 -10 -10 -9 -8 ------- Run | Scr Mat Min Exi Min Mat Traps Triggered . | . . . . . . Indirectly . | . . . . . . Trap Hack Attempts . | . . . . . . Triggered . | . . . . . . Disarmed . | . . . . . . Reprogrammed . | . . . . . . Reused . | . . . . . . Traps Extracted . | . . . . . . Installed . | . . . . . . Triggered . | . . . . . . Machines | -11 -10 -10 -10 -9 -8 ---------- Run | Scr Mat Min Exi Min Mat Machines Disabled . | . . . . . . Max in Single Turn . | . . . . . . Machines Sabotaged . | . . . . . . Garrisons Compromised . | . . . . . . Overloaded Fab Kills . | . . . . . . Fab Network Shutdowns . | . . . . . . Hacking | -11 -10 -10 -10 -9 -8 --------- Run | Scr Mat Min Exi Min Mat Machines Accessed 7 | . 2 . 4 . 1 Terminals 2 | . 2 . . . . Fabricators . | . . . . . . Repair Stations 1 | . . . . . 1 Recycling Units . | . . . . . . Scanalyzers . | . . . . . . Garrison Access . | . . . . . . Total Hacks 58 | . 6 . 49 . 3 Successful 56 | . 5 . 49 . 2 Failed 2 | . 1 . . . 1 Catastrophic . | . . . . . . Database Lockouts . | . . . . . . Manual . | . . . . . . Terminals 6 | . 6 . . . . Fabricators . | . . . . . . Repair Stations 3 | . . . . . 3 Recycling Units . | . . . . . . Scanalyzers . | . . . . . . Garrison Access . | . . . . . . Terminal Hacks 54 | . 5 . 49 . . Record 52 | . 3 . 49 . . Alert Level 2 | . 2 . . . . Fabricator Hacks . | . . . . . . Repair Station Hacks 2 | . . . . . 2 Scan Component 1 | . . . . . 1 Repair 1 | . . . . . 1 Recycling Unit Hacks . | . . . . . . Scanalyzer . | . . . . . . Garrison Access Hacks . | . . . . . . Unauthorized Hacks . | . . . . . . Terminals . | . . . . . . Fabricators . | . . . . . . Repair Stations . | . . . . . . Recycling Units . | . . . . . . Scanalyzers . | . . . . . . Garrison Access . | . . . . . . Data Cores Recovered . | . . . . . . Used . | . . . . . . Hacking Detections 1 | . 1 . . . . Full Trace Events 1 | . 1 . . . . Feedback Events . | . . . . . . Feedback Blocked . | . . . . . . Robot Schematics Acquired . | . . . . . . Robots Built . | . . . . . . Matter . | . . . . . . Time . | . . . . . . Total Robot Build Rating . | . . . . . . Part Schematics Acquired . | . . . . . . Parts Built . | . . . . . . Matter . | . . . . . . Time . | . . . . . . Total Part Build Rating . | . . . . . . Parts Repaired 1 | . . . . . 1 Time 26 | . . . . . 26 Parts Recycled . | . . . . . . Recycled Matter . | . . . . . . Retrieved Matter . | . . . . . . Retrieved Components . | . . . . . . Parts Scanalyzed . | . . . . . . Part Schematics Acquired . | . . . . . . Parts Damaged . | . . . . . . Bothacking | -11 -10 -10 -10 -9 -8 ------------ Run | Scr Mat Min Exi Min Mat Used RIF Installer . | . . . . . . Robots Hacked . | . . . . . . Non-combat . | . . . . . . Combat . | . . . . . . Robot Hacks Applied . | . . . . . . Relay Couplers Released . | . . . . . . Robots Rewired . | . . . . . . Allies Hacked . | . . . . . . Hacks Repelled . | . . . . . . Allies | -11 -10 -10 -10 -9 -8 -------- Run | Scr Mat Min Exi Min Mat Total Allies . | . . . . . . Largest Group . | . . . . . . Highest-Rated Group . | . . . . . . Highest-Rated Ally . | . . . . . . Total Orders . | . . . . . . Ally Attacks . | . . . . . . Total Damage . | . . . . . . Kills . | . . . . . . Allies Corrupted . | . . . . . . Allies Melted . | . . . . . . Intel | -11 -10 -10 -10 -9 -8 ------- Run | Scr Mat Min Exi Min Mat Robot Analysis Total . | . . . . . . Derelict Logs Recovered 1 | . . . . 1 . Drone Launches . | . . . . . . Drone Recoveries . | . . . . . . Exploration | -11 -10 -10 -10 -9 -8 ------------- Run | Scr Mat Min Exi Min Mat Turns Passed 1452 | 80 224 137 759 66 186 Spaces Moved 1038 | 60 104 115 628 51 80 Core 24 | 9 . . . . 15 Treads 4 | . . . . . 4 Legs 1010 | 51 104 115 628 51 61 Wheels . | . . . . . . Hover . | . . . . . . Flight . | . . . . . . Fastest Speed 50 | 50 120 120 120 120 120 Average Speed 121 | 109 120 120 120 120 146 Slowest Speed 180 | 120 120 120 120 120 180 Overloaded Moves . | . . . . . . Propulsion Burnouts . | . . . . . . Robots Hopped . | . . . . . . Cave-ins Triggered . | . . . . . . Exploration Rate (%) 28 | 4 23 23 90 21 11 Regions Visited 5 Branch Regions 3 Pre-discovered Areas 1 | . . . 1 . . Known Exits Taken . | . . . . . . Unknown Exits Taken 5 | 1 1 1 1 1 . Scrap Searched 1 | . . . . 1 . Spaces Dug . | . . . . . . Terrain Destroyed 42 | . 34 . . 7 1 Melee . | . . . . . . Projectile 1 | . . . . . 1 AOE 41 | . 34 . . 7 . Terrain Rammed . | . . . . . . Walls Destroyed . | . . . . . . Machines Disabled . | . . . . . . Actions | -11 -10 -10 -10 -9 -8 --------- Run | Scr Mat Min Exi Min Mat Total 1157 | 75 163 114 635 53 117 Wait 12 | . 12 . . . . Move 1033 | 59 103 114 627 50 80 Hop . | . . . . . . Pick Up 28 | 10 7 . 3 1 7 Fast Attach . | . . . . . . Attach 22 | 5 4 . 1 . 12 Detach 1 | . 1 . . . . Swap 7 | . 5 . 1 1 . Drop 7 | 1 3 . 3 . . Fire 33 | . 28 . . 1 4 Melee 12 | . . . . . 12 Ram 2 | . . . . . 2 Kick . | . . . . . . Crush . | . . . . . . Escape Stasis . | . . . . . . Rewire . | . . . . . . Trap . | . . . . . . Miscellaneous . | . . . . . . Route ------- -11/Scrapyard -10/Materials -10/Mines -10/Exiles -9/Mines -8/Materials History --------- Turn | Location | Event 7 | -11/Scrapyard | Discovered new exit (range 15) 81 | -11/Scrapyard | Entered Materials 291 | -10/Materials | Discovered new exit (range 8) 305 | -10/Materials | Entered Mines 315 | -10/Mines | Build established: Mutant 436 | -10/Mines | Deemed a non-threat by the Exiles lab entrance 436 | -10/Mines | Discovered new exit (range 5) 442 | -10/Mines | Entered Exiles 480 | -10/Exiles | Met 8R-AWN 501 | -10/Exiles | Met EX-HEX 564 | -10/Exiles | Met EX-DEC 577 | -10/Exiles | Learned location of Zion (-7) 649 | -10/Exiles | Visited The Gauntlet 858 | -10/Exiles | Discovered new exit (range 12) 945 | -10/Exiles | Met EX-BIN 1201 | -10/Exiles | Entered Mines 1230 | -9/Mines | Found a damaged Exp. Sensor Array with a note attached 1233 | -9/Mines | Found Prototype Device 1237 | -9/Mines | Learned Materials interactive machine intel 1248 | -9/Mines | Assembled infested the area 1253 | -9/Mines | Assisted by a Guerilla fighting off Assembled 1260 | -9/Mines | Discovered new exit (range 8) 1263 | -9/Mines | Core integrity fell below 50% 1267 | -9/Mines | Entered Materials 1267 | -8/Materials | Evolved 4 slots: Propulsion x2, Utility x1, Weapon x1 1268 | -8/Materials | Loaded intel: 18 interactive machine locations 1268 | -8/Materials | Identified Exp. Sensor Array 1296 | -8/Materials | Lost 4 parts (1p1u2w) 1369 | -8/Materials | Repaired Aluminum Leg? 1401 | -8/Materials | Core integrity fell below 50% 1404 | -8/Materials | Lost 4 parts (2n1u1w) 1418 | -8/Materials | Core integrity fell below 20% 1453 | -8/Materials | Destroyed by G-47 Trooper with Particle Gun Last Messages --------------- 01377_ R-06 Scavenger collects Ion Cannon. 01393_ Acquired Adv. Treads. 01396_ Acquired Hvy. Mace. 01398_ Acquired Nuclear Core. 01404_ Exp. Sensor Array destroyed. 01408_ L-31 Rogue knocked back. 01410_ Nuclear Core destroyed. 01411_ Acquired Hvy. Mace. 01417_ Destroyed Melee Analysis Suite. 01417_ L-31 Rogue system corrupted by crushing effect. 01417_ Hvy. Mace follow-up attack on L-31 Rogue. 01417_ L-31 Rogue knocked back. 01420_ Lgt. Treads destroyed. 01421_ L-31 Rogue destroyed. 01427_ G-47 Trooper knocked back. 01432_ Adv. Treads destroyed. 01434_ Hvy. Mace follow-up attack on Y-45 Defender. 01434_ Y-45 Defender destroyed. 01438_ Hvy. Mace follow-up attack on G-47 Trooper. 01451_ Lgt. Treads destroyed. Map ----- +----------------------------------------------------+ | ?????????????????????????????????????????????????? | | ?????????????????????????????????????????????????? | | ?????????????????????????????????????????????????? | | ?????????????????????????????????????????????????? | | ????????????????????????????????"Y"??????????????? | | ????????????????????????????????"""??????????????? | | ????????????????????????????###+###??????????????? | | ????????????????????????????? ???????????????? | | ????????????????????????????? ???????????????? | | ????????????????????????????? ???????????????? | | ?????????????????????????????# #???????????????? | | ?????????????????????????????# #???????????????? | | ?????????????????????????????# #???????????????? | | ????????????????????????##???# #???????????????? | | ??????????????????????### #### #???????????????? | | ??????????????????????# # #???????????????? | | ??????????????????????# "S # #???????????????? | | ??????????????????????# """ / #???????????????? | | ??????????????????????# "" # ###########????## | | ??????????????????????#! # # #????# | | ??????????????????????# # # #????# | | ??????????????????????######## # ###### | | ?????????????????????????????# # """ + + | | ????????????????????########## # """ # # | | ????????????????????# !%g + + " " """ # # | | ????????????????????# @* # # "R" # ## | | ????????????????????#*%= # # """ # #? | | ????????????????????#*/= g # ########### ## | | ????????????????????# # | | ????????????????????# # | | ????????????????????# = # | | ????????????????????# ##################### | | ????????????????????# #???????????????????# | | ????????????????????##########???????????????????# | | ?????????????????????????????????????????????????# | | ?????????????????????????????????????????????????# | | ?????????????????????????????????????????????????# | | | | | | | | | | | | | | | | | | | | | | | | | | | +----------------------------------------------------+ Best States ------------- Heat Dissipation 31 Energy Generation 14 Energy Capacity 240 Matter Stores 298 Matter Capacity 300 Sight Range 16 Robot Scan Range 30 Terrain Scan Density 10 Armor Coverage 150 Evasion (%) 40 Recoil Reduction 3 Item Schematics ----------------- None Robot Schematics ------------------ None Fabricated ------------ Nothing Alien Tech Used ----------------- None Achievements -------------- Librarian One Hack Too Far Part-time Mechanic Tourist Challenges ------------ None Game ------ Seed HypercooledFieldShockpuncher Manual? 0 Play Time 00:21:11 Cumulative 6.6 hours Start 2020.11.18 @ 23:01:57 End 2020.11.18 @ 23:33:54 Sessions 1 Manual Loads 0 Difficulty Rogue Special Mode Halloween2020/ForbiddenLore Game No. 15 Rogue 15 Adventurer 0 Explorer 0 Win Type - Total 0 Types 0/0/0/0/0/0/0/0/0 Lore% 11 Gallery% 16 Achievement% 8 Wizard Run 0 Options --------- ASCII 0 Keyboard 0 Movement Vi Keybinds 0 Fullscreen 1 Font 18/SmallcapsGlow Map View 76x50 Tactical HUD 1 Map Filters NONE Filters NONE Steam 1 RUN: 9a622c36-8c6b-4c03-b307-72baad66783e